{"text_format":"1","workbook":"xlsx","n_sheets":1,"sheets":["01.04.2021 СВОД"],"not_rendered":{"charts":0,"images":0,"macros":0,"external_links":0,"defined_names":2,"comments":0,"pivot_tables":0},"unopened":[],"bounds":{"document_bytes":16777216,"sheet_cells":100000,"rows_first":2000,"rows_last":500,"rows_between":2000,"halvings":0,"cell_chars":16384,"cell_head_chars":4096},"cells_cut":0,"cells_raw":0,"read":"whole","date_system":"1900"}

{"sheet":"01.04.2021 СВОД","index":0,"n_rows":48,"n_cols":6,"rows_kept":48,"cut":false,"hidden":false,"merged":[[0,4,0,5],[1,4,1,5],[2,4,2,5],[50,1,50,2],[3,0,3,5],[44,0,44,2],[49,1,49,2]]}
[null,null,null,null,"Приложение №2"]
[null,null,null,null,"к постановлению администрации                                                                                                                                                                                                                                                                                                                                                                                                                                                                                                              ЗАТО г. Радужный Владимирской области"]
[null,null,null,null,"от 16.04.2021г. № 468"]
["Сведения о фактической численности муниципальных служащих, работников казенных и бюджетных учреждений и расходы на их денежное содержание по состоянию на 01 апреля 2021 года"]
[]
["№п/п","Код раздела (подраздела)","Наименование раздела (подраздела) расходов","Фактическая численность на 01.04.2021 (чел.)","Годовой фонд оплаты труда с начислениями (тыс.руб.)","Исполнено за отчетный период (тыс.руб.)"]
[1,2,3,4,5,6]
[1,"0100","Общегосударственные вопросы",{"$f":"D10+D11+D12+D13+D14","v":206.5},{"$f":"E10+E11+E12+E13+E14","v":72607.23},{"$f":"F10+F11+F12+F13+F14","v":13618.36}]
[null,null,"в том числе:"]
["1.1","0102","Функционирование высшего должностного лица субъекта Российской Федерации и муниципального образования",1,1954.97,362.26]
["1.2","0103","Функционирование законодательных (представительных) органов государственной власти и представительных органов муниципальных образований",2,2039.82,361.31]
["1.3","0104","Функционирование Правительства Российской Федерации, высших исполнительных органов государственной власти субъектов Российской Федерации, местных администраций",13,8923.83,1677.94]
["1.4","0106","Обеспечение деятельности финансовых, налоговых и таможенных органов и органов финансового (финансово-бюджетного) надзора",10,5298.53,946.54]
["1.5","0113","Другие общегосударственные вопросы",{"$f":"14.5+150+14+2","v":180.5},54390.080000000002,10270.31]
["2","0300","Национальная безопасность и правоохранительная деятельность, всего, в том числе",{"$f":"D17","v":5},{"$f":"E17","v":2393.6},{"$f":"F17","v":430.16}]
[null,null,"в том числе:"]
["2.1","0309","Защита населения и территории от чрезвычайных ситуаций природного и техногенного характера, гражданская оборона",5,2393.6,430.16]
["3.","0400","Национальная экономика",{"$f":"D21","v":37},{"$f":"E20+E21","v":17062.2},{"$f":"F21","v":2993.96}]
[null,null,"в том числе:"]
["3.1","0401","Общеэкономические вопросы","*",{"$f":"149.9+230+542.93","v":922.82999999999993},0]
["3.2","0409","Дорожное хозяйство (дорожные фонды)",37,16139.37,2993.96]
["4.","0500","Жилищно-коммунальное хозяйство",{"$f":"D24+D25","v":59},{"$f":"E24+E25","v":24309.84},4398.46]
[null,null,"в том числе:"]
["4.1","0503","Благоустройство",5,2287.5700000000002,352.76]
["4.2","0505","Другие вопросы в области жилищно-коммунального хозяйства",54,22022.27,4045.7]
["5","0700","Образование",{"$f":"D28+D29+D30+D31","v":490},{"$f":"E28+E29+E30+E31","v":223643.94999999998},{"$f":"F28+F29+F30+F31","v":68747.459999999992}]
[null,null,"в том числе:"]
["5.1","0701","Дошкольное образование",200,85663.71,26485.45]
["5.2","0702","Общее образование ",179,{"$f":"93583.34-121","v":93462.34},31029]
["5.3","0703","Дополнительное образование детей",{"$f":"53+33","v":86},{"$f":"18665.15+16082.71-109-542.93","v":34095.93},{"$f":"4915.76+4394.78","v":9310.5400000000009}]
["5.4.","0709","Другие вопросы в области образования",25,10421.969999999999,1922.47]
["6.","0800","Культура, кинематография",{"$f":"D34+D35","v":95},{"$f":"E34+E35","v":33513.32},{"$f":"F34+F35","v":8323.89}]
[null,null,"в том числе:"]
["6.1","0801","Культура",55,21523.599999999999,6047.48]
["6.2","0804","Другие вопросы в области культуры, кинематографии",40,11989.72,2276.41]
["7.","1000","Социальная политика",{"$f":"D38","v":2},{"$f":"E38","v":1030.43},{"$f":"F38","v":210.87}]
[null,null,"в том числе:"]
["7.1","1006","Другие вопросы в области социальной политики",2,1030.43,210.87]
["8.","1100","Физическая культура и спорт",{"$f":"D41","v":3},{"$f":"E41","v":752.59},{"$f":"F41","v":143.47}]
[null,null,"в том числе:"]
["8.1","1103","Спорт высших достижений",3,752.59,143.47]
[null,null,"Всего:",{"$f":"D8+D15+D18+D22+D26+D32+D36+D39","v":897.5},{"$f":"E8+E15+E18+E22+E26+E32+E36+E39","v":375313.16},{"$f":"F8+F15+F18+F22+F26+F32+F36+F39","v":98866.62999999999}]
[null,"* Временная занятость детей и молодежи в летний период."]
[]
["Заместитель главы администрации города по финансам и экономике, начальник финансового управления     ",null,null,null,"О.М. Горшкова"]
[]
[]
["В.Н. Милованова, 3-67-17"]